bitfinex/quotes_ETHUSD_20250219
["timestamp","ask_amount","ask_price","bid_price","bid_amount"]
[1739942260401,3.72394,2685.4,2685.1,0.7597847]
[1739942261018,3.72349,2685.7,2685.1,0.7597847]
[1739942261197,0.9601339,2685.9,2685.1,0.7597847]
[1739942261198,3.8719539,2685.9,2685.2,4.52741]
[1739942261397,3.8719539,2685.9,2685.3,0.8254]
[1739942261600,3.8719539,2685.9,2685.3,4.54928]
[1739942261913,0.1487339,2685.9,2685.4,3.72378]
[1739942262074,0.1487339,2685.9,2685.5,3.72368]
[1739942262398,0.1487339,2685.9,2685.3,4.54925]
[1739942262565,3.8719239,2685.9,2685.3,4.54925]
[1739942262967,3.8719239,2685.9,2685.6,0.27896646]
[1739942263368,3.8719239,2685.9,2685.7,0.8254]
[1739942263369,0.1487339,2685.9,2685.7,0.8254]
[1739942264893,3.8719639,2685.9,2685.4,0.8178]
[1739942265195,0.1487339,2685.9,2685.6,0.7632562]
[1739942265415,0.1487339,2685.9,2685.7,0.8178]
[1739942266212,0.7706,2685.8,2685.6,0.7632562]
[1739942266418,3.72342,2685.7,2685.2,1.0908]
[1739942266780,7.44694,2685.7,2685.2,1.0908]
[1739942267120,3.72372,2685.5,2685.1,5.36]
[1739942267285,0.8223,2685.4,2685.2,0.74713265]
[1739942267685,0.8223,2685.4,2685.2,1.02652569]
[1739942268220,2.49008001,2685.6,2685.2,1.02652569]
[1739942268382,0.8223,2685.7,2685.2,1.02652569]
[1739942268582,4.54581,2685.7,2685.2,1.02652569]
[1739942269218,0.8223,2685.7,2685.2,5.50615569]
[1739942269366,3.72364,2685.6,2685.3,0.27939304]
[1739942269771,3.72378,2685.5,2685.3,0.27939304]
[1739942270085,3.72384,2685.4,2685.3,0.27939304]
[1739942270265,4.54614,2685.4,2685.3,0.27939304]
[1739942270895,3.72406,2685.3,2685.0,0.7300387]
[1739942271098,3.72415,2685.2,2685.0,0.7300387]
[1739942271324,3.72425,2685.1,2685.0,0.7300387]
[1739942271608,3.72453,2684.9,2684.4,1.02617898]
[1739942271916,2.49008001,2684.9,2684.4,1.02617898]
[1739942272123,3.7887,2685.2,2684.5,0.7616]
[1739942272324,3.7244,2685.0,2684.5,0.7616]
[1739942272811,3.7244,2685.0,2684.5,1.00450599]
[1739942273319,3.7244,2685.0,2684.5,0.24290599]
[1739942274093,3.7244,2685.0,2684.4,1.02617898]
[1739942275826,3.72456,2684.9,2684.4,1.02617898]
[1739942276482,0.7941,2684.7,2684.4,1.02617898]
[1739942276881,0.7941,2684.7,2684.4,0.75317898]
[1739942277495,4.51895,2684.7,2684.4,0.75317898]
[1739942279559,3.72508,2684.5,2684.4,0.75317898]
[1739942280555,3.72523,2684.4,2683.9,0.8254]
[1739942280924,4.48529,2684.3,2683.7,0.7714]
[1739942281233,4.48529,2684.3,2684.0,0.74662364]
[1739942281449,8.21075,2684.3,2684.0,0.74662364]
[1739942281955,3.72552,2684.2,2684.0,0.74662364]
[1739942282131,4.48529,2684.3,2684.0,0.74662364]
[1739942282320,3.72551,2684.2,2684.0,0.74662364]
[1739942282519,5.38,2684.7,2684.1,0.7838]
[1739942282730,5.38,2684.7,2684.1,4.50943]
[1739942282964,5.38,2684.7,2684.1,0.7838]
[1739942283260,9.10484,2684.7,2684.1,0.7838]
[1739942284455,2.49008001,2685.3,2684.1,0.82105508]
[1739942284621,0.8004,2685.2,2684.7,3.72468]
[1739942284821,3.29048001,2685.4,2684.8,0.7783]
[1739942285146,4.52990601,2685.4,2684.8,0.7783]
[1739942285721,8.25382601,2685.4,2684.8,0.7783]
[1739942285920,3.29048001,2685.4,2684.8,4.50295]
[1739942286126,3.29048001,2685.4,2684.9,3.72453]
[1739942286339,0.8004,2685.4,2684.9,3.72453]
[1739942287075,0.8213,2685.7,2685.1,3.72416]
[1739942287365,0.8213,2685.7,2685.2,0.7799]
[1739942287539,2.63881391,2685.9,2685.2,4.50398]
[1739942287737,1.32292429,2685.9,2685.3,3.72396]
[1739942288060,0.1487339,2685.9,2685.4,1.09745]
[1739942288268,0.1487339,2685.9,2685.7,3.7234]
[1739942289725,0.1487339,2685.9,2685.6,0.75020726]
[1739942290258,0.1487339,2685.9,2685.6,4.47375726]
[1739942290556,0.19077645,2686.6,2685.7,3.0]
[1739942290755,3.72187,2686.9,2686.1,3.72283]
[1739942291134,3.72192,2686.8,2686.2,0.8068]
[1739942292231,3.7219,2686.8,2686.2,0.8068]
[1739942293867,3.7219,2686.8,2686.3,0.76481321]
[1739942294264,7.04443001,2686.7,2686.2,1.0798]
[1739942294593,3.72302,2686.0,2685.3,5.36]
[1739942294797,6.21310001,2686.0,2685.3,9.08394]
[1739942295160,6.21310001,2686.0,2685.5,0.76279818]
[1739942295577,2.49008001,2686.0,2685.5,0.76279818]
[1739942295974,6.72287,2686.1,2685.5,0.76279818]
[1739942296170,2.49008001,2686.3,2685.5,0.76279818]
[1739942296375,3.72339,2685.8,2685.5,0.76279818]
[1739942296694,3.72339,2685.8,2685.2,0.274]
[1739942296922,3.72343,2685.7,2685.1,0.8039]
[1739942297096,3.72328,2685.8,2685.1,1.0779]
[1739942297261,3.72328,2685.8,2685.3,0.74331963]
[1739942297598,7.44668,2685.8,2685.3,0.74331963]
[1739942297797,3.72328,2685.8,2685.3,0.74331963]
[1739942297970,3.7557,2685.9,2685.3,0.74331963]
[1739942298177,5.49008001,2686.1,2685.4,3.72374]
[1739942298388,0.8274,2686.2,2685.5,0.7728]
[1739942298591,5.38,2686.3,2685.6,3.72345]
[1739942299193,5.38,2686.3,2685.9,0.73637899]
[1739942299392,3.72246,2686.4,2685.9,0.73637899]
[1739942299709,3.72193,2686.8,2686.1,3.72286]
[1739942299881,3.7221,2686.7,2686.0,4.53869]
[1739942300201,3.72217,2686.6,2686.0,0.8157]
[1739942300800,6.21259001,2686.4,2685.9,0.73637899]
[1739942301125,2.49008001,2686.4,2685.9,0.73637899]
[1739942301298,2.49008001,2686.4,2685.4,8.81]
[1739942301299,3.72379,2685.5,2684.9,6.1151]
[1739942301502,3.72379,2685.5,2684.9,5.36]
[1739942301820,6.21403001,2685.4,2684.9,5.36]
[1739942302358,2.49008001,2685.4,2685.1,0.73371217]
[1739942302813,6.21394001,2685.4,2684.9,5.36]
[1739942302993,3.72406,2685.3,2684.7,0.275]
[1739942303348,2.49008001,2685.4,2684.7,3.9998]
[1739942303708,0.7779,2686.1,2685.3,3.72394]
[1739942303904,1.227968,2686.1,2685.4,4.53614]
[1739942304104,3.72302,2686.0,2685.5,0.275]
[1739942305498,3.72302,2686.0,2685.5,1.02445803]
[1739942306202,8.43636278,2686.4,2685.5,1.02445803]
[1739942306203,6.1864,2686.4,2685.5,0.74945803]
[1739942306417,0.6,2686.5,2685.5,0.74945803]
[1739942306418,0.8064,2686.7,2686.0,4.47438]
[1739942306607,3.72176,2686.9,2686.0,4.47438]
[1739942306905,0.452816,2686.8,2686.0,4.47438]
[1739942307106,3.72204,2686.7,2686.0,4.47438]
[1739942307305,3.72204,2686.7,2686.0,0.7514]
[1739942307509,3.72229,2686.6,2686.0,0.7514]
[1739942307735,3.72231,2686.5,2686.0,0.7514]
[1739942308104,3.72231,2686.5,2685.8,3.72318]
[1739942308315,0.7786,2686.4,2686.0,0.7396486]
[1739942309557,4.50107,2686.4,2685.9,0.275]
[1739942309853,4.50116,2686.4,2685.9,0.275]
[1739942310057,1.600947,2686.4,2685.9,1.0033762]
[1739942310265,0.7786,2686.4,2685.9,1.0033762]
[1739942310554,4.50107,2686.4,2685.9,1.0033762]
[1739942310721,3.72268,2686.3,2685.9,1.0033762]
[1739942312243,0.7786,2686.4,2685.9,1.0033762]
[1739942313376,4.50108,2686.4,2685.9,1.0033762]
[1739942313679,0.7786,2686.4,2685.9,1.0033762]
[1739942314429,4.50106,2686.4,2685.9,1.0033762]
[1739942314944,0.7786,2686.4,2685.9,1.0033762]
[1739942315279,4.50106,2686.4,2685.9,1.0033762]
[1739942316311,0.7786,2686.4,2685.9,1.0033762]
[1739942316667,4.50108,2686.4,2685.9,1.0033762]
[1739942317181,0.7786,2686.4,2685.9,1.0033762]
[1739942317392,4.50106,2686.4,2685.9,1.0033762]
[1739942318910,3.72259,2686.3,2685.9,1.0033762]
[1739942320276,4.50107,2686.4,2685.9,1.0033762]
[1739942320605,7.50107,2686.4,2685.9,4.7264862]
[1739942321592,3.0,2686.5,2685.9,4.7264862]
[1739942321792,6.72242,2686.5,2685.9,4.7264162]
[1739942321989,3.72217,2686.6,2685.9,4.7264162]
[1739942322202,4.47463288,2686.6,2685.9,1.0033762]
[1739942322373,4.47463288,2686.6,2685.9,0.275]
[1739942322708,3.72287,2686.1,2685.5,5.36]
[1739942322904,7.44645,2685.9,2685.4,1.0396]
[1739942323124,3.0,2686.0,2685.4,0.275]
[1739942323272,3.72345,2685.7,2685.6,0.73105743]
[1739942323470,3.72345,2685.7,2685.2,6.3996]
[1739942323888,3.72345,2685.7,2685.2,10.1237]
[1739942324087,3.72322,2685.9,2685.3,3.7239]
[1739942324288,3.72322,2685.9,2685.5,0.7566575]
[1739942324506,7.44646,2685.9,2685.5,0.7566575]
[1739942324711,3.72385,2685.4,2685.2,5.36]
[1739942324908,3.72385,2685.4,2685.0,0.8109]
[1739942325440,3.72385,2685.4,2684.9,0.274]
[1739942325575,3.72435,2685.1,2684.8,0.72949008]
[1739942326317,3.72406,2685.3,2684.8,0.72949008]
[1739942326671,3.72406,2685.3,2684.6,0.275]
[1739942326672,3.72429,2685.1,2684.6,0.275]
[1739942327125,3.7552,2685.2,2684.7,0.74553677]
[1739942327321,3.72434,2685.1,2684.7,0.74553677]
[1739942327503,3.7244,2685.0,2684.7,0.74553677]
[1739942327877,3.72421,2685.2,2684.7,0.74553677]
[1739942328291,7.44844,2685.2,2684.7,0.74553677]
[1739942328493,3.7245,2685.0,2684.7,0.74553677]
[1739942329735,3.72476,2684.8,2684.5,0.8242]
[1739942329891,3.72476,2684.8,2684.5,0.75232863]
[1739942330094,3.72483,2684.7,2684.5,0.75232863]
[1739942330530,7.45008,2684.6,2684.2,8.372]
[1739942330731,3.72504,2684.6,2684.4,0.74741931]
[1739942331358,3.0,2684.7,2684.4,0.74741931]
[1739942331671,6.72455,2684.9,2684.4,0.74741931]
[1739942331952,3.0,2684.7,2684.4,0.74741931]
[1739942332528,7.01103173,2685.0,2684.4,0.74741931]
[1739942332529,2.48397173,2685.0,2684.5,3.72496]
[1739942332838,2.48397173,2685.0,2684.5,0.8038]
[1739942332839,3.72467,2684.8,2684.5,0.8038]
[1739942333039,3.72467,2684.8,2684.4,0.74741931]
[1739942333220,3.72482,2684.7,2684.4,0.74741931]
[1739942333419,3.72467,2684.8,2684.4,0.74741931]
[1739942335368,3.0,2684.9,2684.4,0.74741931]
[1739942335568,3.0,2684.9,2684.4,4.47260931]
[1739942335955,2.48397173,2685.0,2684.4,4.47253931]
[1739942336473,2.48397173,2685.0,2684.5,3.72499]
[1739942337166,2.48397173,2685.0,2684.4,4.47253931]
[1739942337467,2.48397173,2685.0,2684.6,3.72494]
[1739942337856,2.48397173,2685.0,2684.5,3.72508]
[1739942338167,2.48397173,2685.0,2684.6,3.72493]
[1739942338531,3.0,2685.1,2684.6,3.72487]
[1739942340271,5.38,2685.2,2684.9,7.44886]
[1739942340445,3.0,2685.5,2684.9,3.72443]
[1739942340646,3.0,2685.5,2684.9,7.72383]
[1739942340843,6.98063173,2685.6,2684.9,3.9994]
[1739942340844,3.25707173,2685.6,2684.9,3.9994]
[1739942341048,7.6787089,2685.6,2685.0,3.72438]
[1739942341435,3.7237,2685.5,2684.9,3.9994]
[1739942341662,7.44753,2685.5,2684.9,3.9994]
[1739942341973,0.8145,2685.8,2685.2,0.73870509]
[1739942342177,3.72345,2685.7,2685.3,0.7777]
[1739942342377,7.02186173,2685.8,2685.2,0.73870509]
[1739942342678,7.02186173,2685.8,2685.3,3.72397]
[1739942343169,3.29847173,2685.8,2685.4,3.7238]
[1739942343479,7.52396,2686.0,2685.3,3.7239]
[1739942343672,9.06275317,2686.0,2685.3,3.7239]
[1739942343874,0.8009,2686.0,2685.5,4.50949]
[1739942344477,0.8009,2686.0,2685.5,0.7858]
[1739942344773,0.8009,2686.0,2685.5,4.50949]
[1739942345581,0.8009,2686.0,2685.3,3.7239]
[1739942346379,4.52398,2686.0,2685.4,3.72383]
[1739942346558,6.13505217,2686.0,2685.4,3.72383]
[1739942347481,5.33415217,2686.0,2685.3,3.7239]
[1739942347648,1.61107217,2686.0,2685.5,3.72357]
[1739942347848,2.48397173,2686.1,2685.6,3.72355]
[1739942348049,2.48397173,2686.1,2685.5,3.72357]
[1739942348248,6.20693173,2686.1,2685.5,3.72357]
[1739942348589,6.20693173,2686.1,2685.5,3.76197]
[1739942348900,6.20735173,2685.8,2685.4,0.73482641]
[1739942349254,3.72345,2685.7,2685.1,3.76253]
[1739942349566,0.7772,2685.6,2685.1,3.72413]
[1739942349756,0.7772,2685.6,2685.1,3.99913]
[1739942350142,4.50089,2685.6,2685.1,0.275]
[1739942350365,3.72372,2685.5,2685.0,5.36]
[1739942350571,0.450092,2685.4,2685.0,5.635]
[1739942350781,3.72399,2685.3,2685.0,5.36]
[1739942351459,7.44809,2685.3,2685.0,5.36]
[1739942351662,3.72399,2685.3,2685.0,5.36]
[1739942351973,3.72384,2685.4,2685.0,5.36]
[1739942352590,4.79471717,2685.4,2685.0,5.36]
[1739942353382,4.79472717,2685.4,2685.0,5.36]
[1739942353587,3.72403,2685.3,2684.8,4.75808278]
[1739942353752,3.72442,2685.0,2684.8,0.275]
[1739942354189,4.79539717,2685.0,2684.4,12.13859]
[1739942354363,4.79539717,2685.0,2684.4,12.41359]
[1739942354565,8.51989717,2685.0,2684.6,0.34844441]
[1739942354766,4.79539717,2685.0,2684.6,0.34844441]
[1739942354979,3.72472,2684.8,2684.6,0.34844441]
[1739942355689,8.51986717,2685.0,2684.5,0.34844441]
[1739942355891,0.92970672,2684.9,2684.5,0.34844441]
[1739942356453,0.7772,2685.1,2684.6,3.72483]
[1739942356792,4.50148,2685.1,2684.6,3.72483]
[1739942356983,0.7772,2685.1,2684.5,0.34844441]
[1739942357357,3.72447,2685.0,2684.4,9.13739962]
[1739942357873,3.72454,2684.9,2684.4,9.13739962]
[1739942358190,3.72495,2684.6,2684.4,9.13739962]
[1739942358490,0.7778,2684.6,2684.2,0.274]
[1739942358993,0.7536,2684.9,2684.4,3.72518]
[1739942359289,5.38,2685.0,2684.6,3.72491]
[1739942359490,5.38,2685.0,2684.5,3.76348]
[1739942360096,9.1044,2685.0,2684.5,0.0384]
[1739942361356,3.7239,2685.4,2684.5,0.0384]
[1739942361556,6.72401,2685.3,2684.7,3.72467]
[1739942362494,0.7731,2685.5,2685.0,3.72425]
[1739942362672,3.0,2685.4,2685.0,3.72425]
[1739942362868,3.0,2685.4,2684.8,3.72458]
[1739942363390,4.49683,2685.5,2684.5,0.0384]
[1739942363391,0.7731,2685.5,2685.0,3.72439]
[1739942363592,0.7731,2685.5,2685.0,0.275]
[1739942363806,3.72385,2685.4,2685.0,0.275]
[1739942364662,3.72405,2685.3,2685.0,1.0171872]
[1739942364863,3.72405,2685.3,2685.0,0.275]
[1739942365379,3.72405,2685.3,2684.8,0.62350631]
[1739942366303,3.72405,2685.3,2684.9,0.73555047]
[1739942366806,3.72385,2685.4,2684.9,0.73555047]
[1739942367601,6.72385,2685.4,2684.9,0.73555047]
[1739942368785,3.0,2685.4,2684.9,0.73555047]
[1739942368989,6.72387,2685.4,2684.9,0.73555047]
[1739942369372,3.0,2685.3,2684.9,0.73555047]
[1739942369594,3.72406,2685.3,2684.9,0.73555047]
[1739942369900,11.22068,2685.5,2684.9,0.73555047]
[1739942370098,8.86731517,2685.5,2684.9,4.46000047]
[1739942370264,7.49685,2685.5,2685.0,0.0384]
[1739942370465,7.49685,2685.5,2685.0,3.76278]
[1739942370864,6.72358,2685.6,2685.1,3.72424]
[1739942371064,6.72358,2685.6,2685.0,0.0384]
[1739942372747,3.72391,2685.4,2684.9,0.73555047]
[1739942374229,3.0,2685.3,2684.9,0.73555047]
[1739942375238,3.0,2685.3,2684.9,4.46003047]
[1739942376331,3.0,2685.3,2684.9,0.73555047]
[1739942376641,3.0,2685.3,2684.9,4.46008047]
[1739942377429,3.72331,2685.8,2685.0,3.8000319]
[1739942377589,3.72331,2685.8,2685.2,3.72402]
[1739942378550,3.72331,2685.8,2685.0,3.76274]
[1739942378551,6.72346,2685.7,2685.0,3.76274]
[1739942378832,6.72346,2685.7,2685.0,3.7627]
[1739942379038,3.0,2685.5,2685.0,7.487]
[1739942379532,3.0,2685.5,2685.0,0.0384]
[1739942379730,3.72387,2685.4,2685.0,0.0384]
[1739942380227,3.72387,2685.4,2684.9,6.36955047]
[1739942380437,3.72408,2685.3,2684.9,6.36955047]
[1739942380733,3.72387,2685.4,2684.9,10.09406047]
[1739942380940,3.72387,2685.4,2685.0,0.24290598]
[1739942381806,3.7877,2685.7,2685.1,3.72416]
[1739942382026,4.78720217,2685.7,2685.2,0.0384]
[1739942382402,8.51066217,2685.7,2685.2,0.0384]
[1739942383034,3.0,2685.5,2685.2,0.0384]
[1739942383349,4.78720217,2685.7,2685.2,0.0384]
[1739942383350,8.51064217,2685.7,2685.2,0.0384]
[1739942383797,7.72294217,2685.7,2685.2,0.0384]
[1739942383996,3.0,2685.5,2685.2,0.0384]
[1739942385908,3.0,2685.7,2685.4,0.74264317]
[1739942386131,6.72344,2685.7,2685.4,0.74264317]
[1739942386809,3.72358,2685.6,2685.4,0.74264317]
[1739942387012,3.0,2685.5,2685.4,0.74264317]
[1739942387315,9.38475561,2686.2,2685.4,0.74264317]
[1739942387316,4.54875,2686.1,2685.6,0.0384]
[1739942387624,5.375885,2686.1,2685.4,0.78104317]
[1739942387829,4.54873,2686.1,2685.4,0.78104317]
[1739942388143,3.72301,2686.0,2685.4,4.50479317]
[1739942388303,4.54873,2686.1,2685.5,3.72364]
[1739942388730,8.2717,2686.1,2685.4,4.50479317]
[1739942389112,8.2717,2686.1,2685.6,0.27908631]
[1739942390014,4.54873,2686.1,2685.6,0.27908631]
[1739942390216,4.54873,2686.1,2685.5,0.2426428]
[1739942390640,4.54873,2686.1,2685.4,4.50479317]
[1739942390991,0.8258,2686.1,2685.4,0.78104317]
[1739942391271,4.15677717,2686.1,2685.4,0.78104317]
[1739942392156,3.72323,2685.9,2685.4,0.78104317]
[1739942392339,3.72323,2685.9,2685.5,0.273]
[1739942394560,3.7237,2685.5,2685.4,0.74264317]
[1739942394775,3.72397,2685.3,2685.2,5.36]
[1739942395590,4.53354,2685.4,2685.2,5.36]
[1739942395904,8.25749,2685.4,2685.2,5.36]
[1739942396097,3.72397,2685.3,2685.2,5.36]
[1739942396262,4.53354,2685.4,2685.2,5.36]
[1739942396461,3.72397,2685.3,2685.2,5.36]
[1739942396797,5.260588,2685.3,2685.2,5.36]
[1739942396949,1.536618,2685.3,2685.2,5.36]
[1739942397163,6.72363,2685.6,2685.2,5.3984]
[1739942397444,6.72372,2685.5,2685.2,5.3984]
[1739942397662,3.0,2685.4,2685.2,5.3984]
[1739942397894,3.72363,2685.6,2685.2,5.3984]
[1739942398083,3.0,2685.5,2685.2,0.0384]
[1739942399572,3.72363,2685.6,2685.2,0.0384]
[1739942400454,3.72363,2685.6,2685.1,0.52191756]
[1739942400648,3.72363,2685.6,2685.2,0.0384]
[1739942400903,3.0,2685.7,2685.2,0.0384]
[1739942401396,6.72345,2685.7,2685.2,3.76251]
[1739942401602,6.72345,2685.7,2685.2,0.0384]
[1739942401807,3.72358,2685.6,2685.2,0.0384]
[1739942402304,3.72344,2685.7,2685.2,0.0384]
[1739942402451,3.72374,2685.5,2685.4,0.74522011]
[1739942403747,4.32481267,2685.6,2685.4,0.74522011]
[1739942404265,3.0,2685.7,2685.4,0.74522011]
[1739942404472,3.72334,2685.8,2685.4,0.78362011]
[1739942404967,7.44673,2685.8,2685.4,0.78362011]
[1739942405165,3.72334,2685.8,2685.4,0.78362011]
[1739942405355,3.72368,2685.6,2685.4,0.74522011]
[1739942408343,3.7237,2685.5,2685.0,0.0384]
[1739942408649,9.019156,2685.6,2685.0,0.0384]
[1739942408998,3.72375,2685.5,2685.3,0.73362646]
[1739942409194,3.72384,2685.4,2685.0,0.0384]
[1739942409545,3.72398,2685.3,2685.1,0.97826581]
[1739942409789,3.72411,2685.2,2685.1,0.97826581]
[1739942410138,3.72411,2685.2,2685.1,0.24284765]
[1739942410631,3.72453,2684.9,2684.6,0.273]
[1739942411153,3.72448,2685.0,2684.7,0.75632133]
[1739942414554,3.72456,2684.9,2684.7,0.75632133]
[1739942414985,3.72453,2684.9,2684.7,0.75632133]
[1739942415195,1.186911,2685.2,2684.7,0.75632133]
[1739942415196,0.8145,2685.2,2684.7,0.75632133]
[1739942415492,3.72401,2685.3,2684.8,0.0384]
[1739942415834,3.72395,2685.4,2684.8,0.0384]
[1739942416262,3.72395,2685.4,2684.9,3.72451]
[1739942416440,3.72395,2685.4,2684.8,7.73021391]
[1739942416645,3.72395,2685.4,2684.8,4.00564391]
[1739942416959,3.72399,2685.3,2684.8,0.28107391]
[1739942417164,4.4917662,2685.4,2684.8,0.28107391]
[1739942417897,3.7242,2685.2,2684.8,0.28107391]
[1739942418047,3.7243,2685.1,2684.8,0.28107391]
[1739942418476,3.7243,2685.1,2684.8,0.24267391]
[1739942418477,3.72443,2685.0,2684.8,0.24267391]
[1739942418679,4.469403,2684.9,2684.8,0.24267391]
[1739942418878,3.72453,2684.9,2684.8,0.24267391]
[1739942419148,3.72453,2684.9,2684.4,5.36]
[1739942419149,3.72473,2684.8,2684.4,5.36]
[1739942419350,3.72498,2684.6,2684.4,6.09663655]
[1739942419578,3.72479,2684.8,2684.4,6.09663655]
[1739942419778,0.8163,2684.9,2684.4,6.09663655]
[1739942420045,3.72444,2685.0,2684.4,9.82175655]
[1739942420861,3.72444,2685.0,2684.5,0.24261478]
[1739942421477,7.44897,2685.0,2684.5,0.24261478]
[1739942421678,3.72454,2684.9,2684.5,0.24261478]
[1739942421913,3.72454,2684.9,2684.4,6.09663655]
[1739942422613,3.72444,2685.0,2684.4,6.09663655]
[1739942422814,3.72444,2685.0,2684.4,9.82183655]
[1739942423613,7.44895,2685.0,2684.4,9.82183655]
[1739942423917,3.72444,2685.0,2684.4,9.82183655]
[1739942424704,3.72444,2685.0,2684.4,10.09483655]
[1739942425993,4.50847,2685.2,2684.4,10.09483655]
[1739942426192,3.72439,2685.0,2684.4,10.09483655]
[1739942426581,2.48397173,2685.3,2684.5,3.72508]
[1739942426904,4.53591,2685.4,2684.7,3.7248]
[1739942427077,4.53591,2685.4,2684.7,3.72472]
[1739942427475,4.53591,2685.4,2684.8,0.2426138]
[1739942427710,5.77589817,2685.4,2684.8,3.9672538]
[1739942427875,1.23998817,2685.4,2684.9,0.0384]
[1739942428077,3.72389,2685.4,2684.9,0.0384]
[1739942428582,4.53667,2685.6,2684.9,0.0384]
[1739942428787,3.72366,2685.6,2685.0,3.72439]
[1739942429324,3.72355,2685.7,2685.2,0.0384]
[1739942429625,3.72366,2685.6,2685.2,0.0384]
[1739942429822,7.44731,2685.6,2685.2,0.0384]
[1739942430126,1.364001,2685.7,2685.2,0.78151936]
[1739942430127,3.72386,2685.4,2685.2,0.78151936]
[1739942430297,3.72397,2685.3,2684.9,0.0384]
[1739942431709,3.72398,2685.3,2684.9,0.0384]
[1739942431911,3.72398,2685.3,2685.1,0.73221264]
[1739942432415,4.49506,2685.4,2685.2,0.08196335]
[1739942432620,4.49506,2685.4,2684.7,0.28105357]
[1739942432621,3.72397,2685.3,2684.7,0.28105357]
[1739942432927,3.7242,2685.2,2684.8,0.08195666]
[1739942433107,3.72429,2685.1,2684.8,0.08195666]
[1739942433428,3.72429,2685.1,2684.9,0.08184249]
[1739942433633,3.72429,2685.1,2684.7,0.0384]
[1739942433926,3.72429,2685.1,2684.8,0.08193971]
[1739942434127,3.72449,2685.0,2684.9,0.76185355]
[1739942434335,4.49582,2684.9,2684.5,0.0384]
[1739942434537,8.22048,2684.9,2684.4,5.632]
[1739942434699,8.22048,2684.9,2684.6,0.08225846]
[1739942434900,3.72468,2684.8,2684.5,0.08235571]
[1739942435233,3.72468,2684.8,2684.6,0.08225846]
[1739942435441,3.72482,2684.7,2684.4,5.36]
[1739942435732,3.72482,2684.7,2684.5,0.08235571]
[1739942435925,3.72482,2684.7,2684.5,0.81382173]
[1739942435926,3.72494,2684.6,2684.5,0.81382173]
[1739942436955,7.44973,2684.7,2684.5,0.81382173]
[1739942437263,8.65814942,2684.7,2684.5,0.08235571]
[1739942437426,4.93323942,2684.7,2684.5,0.08235571]
[1739942437626,3.72494,2684.6,2684.5,0.08235571]
[1739942438461,3.7251,2684.5,2684.3,0.75013158]
[1739942438819,7.45028,2684.5,2684.3,0.75013158]
[1739942439037,3.72523,2684.4,2683.9,0.55321924]
[1739942439635,3.72523,2684.4,2684.2,0.76547377]
[1739942440134,3.7251,2684.5,2684.2,0.76547377]
[1739942440951,3.72527,2684.4,2684.2,0.76547377]
[1739942441867,3.7251,2684.5,2684.2,0.76547377]
[1739942442364,3.72536,2684.3,2684.2,0.76547377]
[1739942443464,4.53216,2684.3,2684.2,0.76547377]
[1739942444081,0.8068,2684.3,2683.8,0.5582829]
[1739942444290,3.72592,2683.9,2683.8,0.5582829]
[1739942445147,4.53272,2683.9,2683.8,0.5582829]
[1739942445347,3.72606,2683.8,2683.7,0.74740112]
[1739942446050,4.53272,2683.9,2683.4,8.375]
[1739942446471,3.72615,2683.8,2683.4,8.375]
[1739942446949,3.72609,2683.8,2683.4,8.375]
[1739942447350,4.53272,2683.9,2683.4,8.375]
[1739942447668,3.72606,2683.8,2683.4,8.375]
[1739942447849,3.72625,2683.7,2683.4,8.375]
[1739942448052,4.53272,2683.9,2683.4,8.375]
[1739942448382,3.72607,2683.8,2683.4,8.375]
[1739942448551,3.72619,2683.7,2683.6,0.73364206]
[1739942449455,4.49324,2683.6,2683.0,0.272]
[1739942449652,3.72644,2683.6,2683.0,3.99915]
[1739942449904,3.72642,2683.6,2683.0,0.272]
[1739942450099,3.72642,2683.6,2683.0,3.99914]
[1739942450407,3.72648,2683.5,2683.0,0.272]
[1739942450565,3.72677,2683.3,2682.9,0.86867984]
[1739942450763,3.72673,2683.4,2683.2,0.74738571]
[1739942452253,4.87931167,2683.6,2683.2,0.74738571]
[1739942452588,0.48793117,2683.5,2683.2,0.74738571]
[1739942452963,4.21441117,2683.5,2683.2,0.74738571]
[1739942454165,3.72665,2683.4,2683.2,0.74738571]
[1739942454687,3.72561,2684.2,2683.4,3.72653]
[1739942454875,4.45703207,2684.2,2683.6,3.72627]
[1739942455047,3.72565,2684.1,2683.6,3.72627]
[1739942455254,0.8303,2684.3,2683.8,3.72602]
[1739942455565,7.45055,2684.4,2683.9,0.0384]
[1739942455768,3.72558,2684.2,2683.9,0.0384]
[1739942455950,3.72558,2684.2,2683.7,0.3114]
[1739942456161,3.72558,2684.2,2684.0,0.08436832]
[1739942456353,3.72558,2684.2,2683.7,0.3114]
[1739942456554,7.45095,2684.3,2684.1,0.08427104]
[1739942456779,4.76308989,2684.2,2683.7,0.3114]
[1739942457188,3.44007719,2684.4,2683.9,0.75659884]
[1739942457897,7.16529719,2684.4,2683.9,0.75659884]
[1739942458848,3.44007719,2684.4,2683.9,0.75659884]
[1739942459047,3.72539,2684.3,2683.9,0.75659884]
[1739942459493,7.16532719,2684.4,2683.9,0.75659884]
[1739942459661,3.44007719,2684.4,2683.9,0.75659884]
[1739942459867,3.72541,2684.3,2683.9,0.75659884]
[1739942460049,7.4509,2684.3,2683.9,0.75659884]
[1739942460252,8.68007491,2684.3,2683.9,0.75659884]
[1739942460461,4.95458491,2684.3,2683.9,0.75659884]
[1739942460762,1.22917491,2684.3,2683.9,0.75659884]
[1739942461178,3.72536,2684.3,2683.9,0.75659884]
[1739942461375,0.44007719,2684.4,2683.9,4.48239884]
[1739942461573,4.16538719,2684.4,2683.9,0.75659884]
[1739942461891,3.72539,2684.3,2683.9,0.75659884]
[1739942462047,0.44007719,2684.4,2683.9,4.48246884]
[1739942462252,4.16532719,2684.4,2683.9,0.75659884]
[1739942462653,0.44007719,2684.4,2683.9,0.75659884]
[1739942462853,0.44007719,2684.4,2683.9,4.48239884]
[1739942463093,7.02295173,2684.7,2684.0,0.0384]